bitfinex/quotes_ETHUSD_20250923
["timestamp","ask_amount","ask_price","bid_price","bid_amount"]
[1758617826106,14.2235683,4216.9,4216.8,39.19355092]
[1758617826825,13.9809683,4216.9,4216.8,39.19355092]
[1758617827902,14.49358215,4216.9,4216.8,39.19355092]
[1758617828901,8.48658215,4216.9,4216.8,39.19355092]
[1758617829103,14.49258215,4216.9,4216.8,39.19355092]
[1758617832334,14.02378215,4216.9,4216.8,39.19355092]
[1758617832495,14.02378215,4216.9,4216.8,41.79481743]
[1758617833126,11.97278215,4216.9,4216.8,42.25681743]
[1758617833330,14.02378215,4216.9,4216.8,42.25681743]
[1758617833929,14.66449327,4216.9,4216.8,41.79481743]
[1758617834134,14.02378215,4216.9,4216.8,41.79481743]
[1758617835131,14.66448599,4216.9,4216.8,41.79481743]
[1758617835311,14.02378215,4216.9,4216.8,42.25681743]
[1758617835636,14.02376654,4216.9,4216.8,42.25681743]
[1758617835931,14.66447846,4216.9,4216.8,42.25681743]
[1758617836130,8.01776654,4216.9,4216.8,42.25681743]
[1758617836335,14.02376654,4216.9,4216.8,41.79481743]
[1758617836720,14.02376654,4216.9,4216.8,39.42335092]
[1758617836899,8.01776654,4216.9,4216.8,42.25811743]
[1758617837104,14.02376654,4216.9,4216.8,42.25811743]
[1758617838155,14.02376765,4216.9,4216.8,42.25811743]
[1758617838943,14.66446483,4216.9,4216.8,42.25811743]
[1758617840221,8.65846483,4216.9,4216.8,42.25811743]
[1758617840422,14.66446483,4216.9,4216.8,42.25811743]
[1758617840955,14.66366483,4216.9,4216.8,42.25811743]
[1758617841256,14.66366483,4216.9,4216.8,41.81441743]
[1758617842156,14.02296765,4216.9,4216.8,41.81441743]
[1758617842519,14.02296765,4216.9,4216.8,39.44295092]
[1758617843055,14.02296765,4216.9,4216.8,41.81441743]
[1758617843258,14.02296765,4216.9,4216.8,39.44295092]
[1758617843559,14.02297069,4216.9,4216.8,39.44295092]
[1758617844163,14.02297069,4216.9,4216.8,41.81441743]
[1758617846448,11.97197069,4216.9,4216.8,41.81441743]
[1758617846773,14.02297069,4216.9,4216.8,41.81441743]
[1758617848868,14.02297069,4216.9,4216.8,42.28791743]
[1758617849263,11.97197069,4216.9,4216.8,42.28791743]
[1758617849580,14.02297069,4216.9,4216.8,42.28791743]
[1758617849776,11.97197069,4216.9,4216.8,41.81441743]
[1758617849964,14.02297069,4216.9,4216.8,42.28791743]
[1758617852068,8.65774985,4216.9,4216.8,43.58452984]
[1758617852268,14.02297069,4216.9,4216.8,43.58452984]
[1758617857982,8.01697069,4216.9,4216.8,43.58452984]
[1758617858488,14.02197069,4216.9,4216.8,43.58452984]
[1758617858684,0.44499223,4216.9,4216.8,58.08452984]
[1758617858887,4.39899223,4216.9,4216.8,58.08452984]
[1758617860805,4.17668401,4216.9,4216.8,58.87652984]
[1758617865815,4.17588401,4216.9,4216.8,58.87652984]
[1758617866212,4.17688401,4216.9,4216.8,58.87652984]
[1758617877680,0.001,4217.4,4217.3,2.37118535]
[1758617877830,3.954,4217.4,4217.3,2.37118535]
[1758617878025,3.954,4217.4,4217.3,2.48958535]
[1758617878546,4.3834,4217.4,4217.3,16.98958535]
[1758617879634,4.6214,4217.4,4217.3,16.98958535]
[1758617879833,4.6214,4217.4,4217.3,18.99695774]
[1758617880550,4.6214,4217.4,4217.3,2.37118535]
[1758617880895,4.6214,4217.4,4217.2,2.37123411]
[1758617881064,0.1184,4217.3,4217.2,2.37123411]
[1758617881269,0.7858,4217.3,4217.2,2.37123411]
[1758617881752,1.29717823,4217.3,4217.2,2.37123411]
[1758617882483,1.29717823,4217.3,4216.8,39.19355092]
[1758617882688,0.6674,4217.2,4217.1,2.37128655]
[1758617885173,1.17877823,4217.2,4217.1,2.37128655]
[1758617889610,1.40098544,4217.2,4217.1,2.37128655]
[1758617890801,1.40018544,4217.2,4217.1,2.37128655]
[1758617892232,5.35318544,4217.2,4217.1,2.37128655]
[1758617893896,5.35318544,4217.2,4216.8,39.19355092]
[1758617894098,0.1184,4216.9,4216.8,39.19355092]
[1758617894326,5.47138544,4216.9,4216.8,39.19355092]
[1758617895701,5.47125613,4216.9,4216.8,39.19355092]
[1758617899395,5.47125613,4216.9,4216.8,41.56501743]
[1758617899600,5.47125613,4216.9,4216.8,39.19355092]
[1758617899836,5.47116541,4216.9,4216.8,39.19355092]
[1758617904307,5.23316541,4216.9,4216.8,39.19355092]
[1758617905548,4.80376541,4216.9,4216.8,39.19355092]
[1758617907452,6.85476541,4216.9,4216.8,39.19355092]
[1758617909726,13.91396541,4216.9,4216.8,39.19355092]
[1758617912145,13.69197823,4216.9,4216.8,39.19355092]
[1758617912350,13.91414276,4216.9,4216.8,39.19355092]
[1758617914172,14.55291014,4216.9,4216.8,39.19355092]
[1758617915551,8.54991014,4216.9,4216.8,39.19355092]
[1758617915752,14.55211014,4216.9,4216.8,39.19355092]
[1758617916873,14.55211014,4216.9,4216.8,41.56501743]
[1758617917088,8.54911014,4216.9,4216.8,41.56501743]
[1758617917245,14.55211014,4216.9,4216.8,42.24411743]
[1758617917447,14.55211014,4216.9,4216.8,41.79201743]
[1758617918480,14.55211014,4216.9,4216.8,39.19355092]
[1758617920076,13.91334276,4216.9,4216.8,39.19355092]
[1758617922278,13.91334276,4216.9,4216.8,41.56501743]
[1758617922649,13.91334276,4216.9,4216.8,41.79201743]
[1758617925283,13.91334276,4216.9,4216.8,42.24411743]
[1758617925466,13.91334276,4216.9,4216.8,41.79201743]
[1758617925979,13.91334276,4216.9,4216.8,39.42055092]
[1758617926652,13.91334276,4216.9,4216.8,39.19355092]
[1758617926852,13.91334276,4216.9,4216.8,41.56501743]
[1758617926853,14.76711027,4216.9,4216.8,41.56501743]
[1758617927554,14.76711027,4216.9,4216.8,39.19355092]
[1758617927753,14.76711027,4216.9,4216.8,41.56501743]
[1758617928180,14.76711027,4216.9,4216.8,39.19355092]
[1758617929464,14.76711027,4216.9,4216.8,41.56501743]
[1758617930483,14.76711027,4216.9,4216.8,39.19355092]
[1758617933994,8.76511027,4216.9,4216.8,41.79141743]
[1758617934167,8.76511027,4216.9,4216.8,44.67015503]
[1758617934168,14.76711027,4216.9,4216.8,44.67015503]
[1758617934367,14.64951027,4216.9,4216.8,44.67015503]
[1758617935475,13.79574276,4216.9,4216.8,44.67015503]
[1758617937411,13.79574276,4216.9,4216.8,41.86278852]
[1758617937712,14.64951027,4216.9,4216.8,39.19355092]
[1758617938220,14.64951027,4216.9,4216.8,41.56501743]
[1758617938815,14.64951027,4216.9,4216.8,39.19355092]
[1758617939500,13.79574276,4216.9,4216.8,39.19355092]
[1758617939701,13.79574276,4216.9,4216.8,41.56501743]
[1758617939905,13.79574276,4216.9,4216.8,41.79141743]
[1758617940216,13.79574276,4216.9,4216.8,42.22731743]
[1758617940714,7.79294276,4216.9,4216.8,42.22731743]
[1758617941013,6.73574276,4216.9,4216.8,42.22731743]
[1758617941587,7.3767119,4216.9,4216.8,42.22731743]
[1758617942225,7.15454737,4216.9,4216.8,42.22731743]
[1758617942816,7.37710216,4216.9,4216.8,42.22731743]
[1758617943315,7.15454737,4216.9,4216.8,42.22731743]
[1758617945612,6.64383812,4216.9,4216.8,41.79141743]
[1758617946043,6.86637538,4216.9,4216.8,41.79141743]
[1758617947829,6.86637538,4216.9,4216.8,39.41995092]
[1758617948013,6.22553726,4216.9,4216.8,39.41995092]
[1758617948217,6.22553726,4216.9,4216.8,39.19355092]
[1758617948520,6.89483726,4216.9,4216.8,39.19355092]
[1758617949651,6.66413726,4216.9,4216.8,39.19355092]
[1758617951008,6.66413726,4216.9,4216.8,41.56501743]
[1758617951256,6.22453726,4216.9,4216.8,41.56501743]
[1758617952756,6.73718417,4216.9,4216.8,41.56501743]
[1758617955558,6.73718417,4216.9,4216.8,39.19355092]
[1758617955559,7.17128417,4216.9,4216.8,39.19355092]
[1758617955867,7.17128417,4216.9,4216.8,41.56501743]
[1758617956472,7.17128417,4216.9,4216.8,39.19355092]
[1758617956660,7.17128417,4216.9,4216.8,41.56501743]
[1758617957173,14.23048417,4216.9,4216.8,41.56501743]
[1758617957331,8.22948417,4216.9,4216.8,41.56501743]
[1758617957628,14.23048417,4216.9,4216.8,41.56501743]
[1758617959386,14.23048417,4216.9,4216.8,39.19355092]
[1758617959567,13.79638417,4216.9,4216.8,39.19355092]
[1758617959960,13.79638417,4216.9,4216.8,41.56501743]
[1758617965688,13.79558417,4216.9,4216.8,41.56501743]
[1758617966290,13.79558417,4216.9,4216.8,39.19355092]
[1758617966787,13.79558417,4216.9,4216.8,41.56501743]
[1758617969062,13.79558417,4216.9,4216.8,41.79841743]
[1758617969262,13.79558417,4216.9,4216.8,41.56501743]
[1758617970001,13.79560086,4216.9,4216.8,41.56501743]
[1758617970998,13.28293726,4216.9,4216.8,41.56501743]
[1758617972195,13.28295,4216.9,4216.8,41.56501743]
[1758617976303,13.79566211,4216.9,4216.8,41.56501743]
[1758617979687,13.79566211,4216.9,4216.8,41.79841743]
[1758617980099,11.74366211,4216.9,4216.8,42.25651743]
[1758617980298,13.79466211,4216.9,4216.8,44.69935503]
[1758617980519,13.79466211,4216.9,4216.8,42.25651743]
[1758617980724,13.79466211,4216.9,4216.8,41.56501743]
[1758617981358,14.26186211,4216.9,4216.8,41.56501743]
[1758617981651,13.79466211,4216.9,4216.8,41.56501743]
[1758617984867,14.26186211,4216.9,4216.8,39.19355092]
[1758617985462,15.3576823,4216.9,4216.8,39.19355092]
[1758617986842,15.1163823,4216.9,4216.8,39.19355092]
[1758617989350,15.1163823,4216.9,4216.8,41.56501743]
[1758617989874,14.6491823,4216.9,4216.8,41.56501743]
[1758617990079,14.6491823,4216.9,4216.8,41.80921743]
[1758617990759,14.6483823,4216.9,4216.8,41.80921743]
[1758617992601,13.79386211,4216.9,4216.8,41.80921743]
[1758617993098,13.79386211,4216.9,4216.8,41.56501743]
[1758617995293,13.79386211,4216.9,4216.8,39.19355092]
[1758617995664,13.79386211,4216.9,4216.8,41.56501743]
[1758617997798,13.79386211,4216.9,4216.8,41.80921743]
[1758617998803,13.79286211,4216.9,4216.8,42.27331743]
[1758618001386,13.79386211,4216.9,4216.8,42.27331743]
[1758618001782,13.79386211,4216.9,4216.8,39.19355092]
[1758618001983,12.77597238,4216.9,4216.8,37.73304787]
[1758618002221,13.08371128,4216.9,4216.8,37.59944931]
[1758618002799,13.08371128,4216.9,4216.8,35.67550268]
[1758618003000,13.87571128,4216.9,4216.8,35.67550268]
[1758618003308,15.58452477,4216.9,4216.8,35.67550268]
[1758618003522,13.87548438,4216.9,4216.8,35.67550268]
[1758618004424,15.23974548,4216.9,4216.8,35.67550268]
[1758618004638,6.77674548,4216.9,4216.8,35.67550268]
[1758618004788,19.18774548,4216.9,4216.8,35.67550268]
[1758618005443,12.77574548,4216.9,4216.8,35.67550268]
[1758618006704,14.05478402,4216.9,4216.8,35.67550268]
[1758618006903,12.77574548,4216.9,4216.8,35.67550268]
[1758618008095,12.77574548,4216.9,4216.8,35.49736081]
[1758618009906,12.54364548,4216.9,4216.8,35.49736081]
[1758618010294,12.10644548,4216.9,4216.8,35.49736081]
[1758618010739,3.73603521,4216.9,4216.8,35.49736081]
[1758618010944,3.64031404,4216.9,4216.8,38.52412723]
[1758618011159,10.37518322,4216.9,4216.8,38.52412723]
[1758618011291,1.37518322,4216.9,4216.8,40.89559374]
[1758618011496,6.22206623,4216.9,4216.8,40.89559374]
[1758618011696,6.73477834,4216.9,4216.8,40.89559374]
[1758618012718,0.73477834,4216.9,4216.8,40.89559374]
[1758618012921,6.22206623,4216.9,4216.8,40.89559374]
[1758618013115,6.73477834,4216.9,4216.8,40.89559374]
[1758618013515,4.68277834,4216.9,4216.8,40.89559374]
[1758618013714,6.22206623,4216.9,4216.8,40.89559374]
[1758618014017,6.73477834,4216.9,4216.8,40.89559374]
[1758618014554,6.73477834,4216.9,4216.8,38.52412723]
[1758618014714,6.73477834,4216.9,4216.8,40.89559374]
[1758618014715,4.68277834,4216.9,4216.8,40.89559374]
[1758618014931,6.22206623,4216.9,4216.8,40.89559374]
[1758618015109,6.73477834,4216.9,4216.8,38.57712732]
[1758618015759,6.73397834,4216.9,4216.8,38.57712732]
[1758618016348,6.73397834,4216.9,4216.8,36.20566081]
[1758618016554,6.73397834,4216.9,4216.8,38.57712732]
[1758618018842,6.73497834,4216.9,4216.8,35.49736081]
[1758618019083,6.73497834,4216.9,4216.8,35.72276081]
[1758618020089,6.73497834,4216.9,4216.8,38.09422732]
[1758618021374,6.73497834,4216.9,4216.8,35.72276081]
[1758618022680,6.73297834,4216.9,4216.8,35.72276081]
[1758618022881,6.73297834,4216.9,4216.8,38.09422732]
[1758618023474,6.73297834,4216.9,4216.8,35.72276081]
[1758618023980,6.73297834,4216.9,4216.8,35.49736081]
[1758618024189,12.78648861,4216.9,4216.8,35.49736081]
[1758618025050,13.63876744,4216.9,4216.8,35.49736081]
[1758618025256,11.26735717,4216.9,4216.8,35.49736081]
[1758618025465,10.41507834,4216.9,4216.8,35.49736081]
[1758618025684,12.78648861,4216.9,4216.8,35.49736081]
[1758618026202,12.56522238,4216.9,4216.8,35.49736081]
[1758618027590,13.41750121,4216.9,4216.8,35.31923669]
[1758618027915,13.63944006,4216.9,4216.8,35.31923669]
[1758618028405,11.58844006,4216.9,4216.8,35.31923669]
[1758618028606,13.64044006,4216.9,4216.8,35.31923669]
[1758618030612,9.73465096,4216.9,4216.8,35.31923669]
[1758618030912,10.58692979,4216.9,4216.8,35.31923669]
[1758618032376,11.02552979,4216.9,4216.8,35.31923669]
[1758618034008,4.58792979,4216.9,4216.8,35.31923669]
[1758618034305,7.68265096,4216.9,4216.8,35.99183669]
[1758618034497,9.73465096,4216.9,4216.8,35.99183669]
[1758618036427,6.73465096,4216.9,4216.8,35.99183669]
[1758618037488,6.73465096,4216.9,4216.8,35.54463669]
[1758618038105,0.73565096,4216.9,4216.8,38.3633032]
[1758618038304,6.73465096,4216.9,4216.8,40.8061408]
[1758618038512,6.73465096,4216.9,4216.8,38.3633032]
[1758618040339,0.73565096,4216.9,4216.8,38.3633032]
[1758618040543,6.73385096,4216.9,4216.8,38.3633032]
[1758618043050,0.73485096,4216.9,4216.8,38.3633032]
[1758618043252,6.73385096,4216.9,4216.8,38.3633032]
[1758618043446,6.73385096,4216.9,4216.8,40.8061408]
[1758618045366,6.73385096,4216.9,4216.8,40.8037408]
[1758618048381,6.73385096,4216.9,4216.8,35.31683669]
[1758618048582,6.96045096,4216.9,4216.8,35.31683669]
[1758618048934,8.0664252,4216.9,4216.8,35.31683669]
[1758618049774,0.73485096,4216.9,4216.8,37.6883032]
[1758618049974,6.73285096,4216.9,4216.8,37.9371032]
[1758618050374,6.73285096,4216.9,4216.8,35.31683669]
[1758618050891,6.73285096,4216.9,4216.8,37.6883032]
[1758618051791,6.73285096,4216.9,4216.8,37.9371032]
[1758618052293,6.73285096,4216.9,4216.8,37.6883032]
[1758618053210,6.73285096,4216.9,4216.8,37.9371032]
[1758618053883,0.73485096,4216.9,4216.8,37.6883032]
[1758618054089,6.73185096,4216.9,4216.8,37.6883032]
[1758618054481,4.68085096,4216.9,4216.8,37.6883032]
[1758618054896,0.73485096,4216.9,4216.8,37.6883032]
[1758618055100,6.73185096,4216.9,4216.8,37.6883032]
[1758618055405,6.73185096,4216.9,4216.8,37.9371032]
[1758618056085,0.73485096,4216.9,4216.8,37.9371032]
[1758618056450,0.73485096,4216.9,4216.8,37.6883032]
[1758618056451,6.73185096,4216.9,4216.8,37.6883032]
[1758618056573,0.73485096,4216.9,4216.8,37.6883032]
[1758618056904,6.73185096,4216.9,4216.8,37.6883032]
[1758618057107,6.73185096,4216.9,4216.8,37.9371032]
[1758618057271,6.73207215,4216.9,4216.8,37.9371032]
[1758618061516,0.73514729,4216.9,4216.8,37.9371032]
[1758618061719,6.73214729,4216.9,4216.8,37.9371032]
[1758618061919,6.73214729,4216.9,4216.8,38.4017032]
[1758618062721,6.73214729,4216.9,4216.8,37.9371032]
[1758618065717,6.73134729,4216.9,4216.8,37.9371032]
[1758618066218,6.50911211,4216.9,4216.8,37.9371032]
[1758618066824,13.79149314,4216.9,4216.8,37.6883032]
[1758618067226,14.43116738,4216.9,4216.8,37.6883032]
[1758618067528,14.20878635,4216.9,4216.8,37.6883032]
[1758618067740,14.43120962,4216.9,4216.8,37.9371032]
[1758618067940,14.43120962,4216.9,4216.8,37.6883032]
[1758618068139,14.20878635,4216.9,4216.8,37.6883032]
[1758618068338,14.20878635,4216.9,4216.8,37.9371032]
[1758618071553,14.43127559,4216.9,4216.8,37.9371032]
[1758618071854,14.20878635,4216.9,4216.8,37.9371032]
[1758618072028,12.15778635,4216.9,4216.8,37.9371032]
[1758618072229,12.15778635,4216.9,4216.8,38.4017032]
[1758618072429,14.20878635,4216.9,4216.8,40.81303801]
[1758618072629,14.43127528,4216.9,4216.8,40.81303801]
[1758618072925,1.37427528,4216.9,4216.8,40.81303801]
[1758618073143,0.73460104,4216.9,4216.8,40.81303801]
[1758618073449,0.001,4217.2,4217.1,2.37129781]
[1758618073635,0.001,4217.2,4217.1,19.33784838]
[1758618073636,3.123,4217.2,4217.1,19.33784838]
[1758618073958,3.947,4217.2,4217.1,20.14593541]
[1758618074313,0.001,4217.2,4217.1,20.93793541]
[1758618087417,0.001,4217.2,4217.1,24.88293541]
[1758618087859,0.001,4217.2,4217.1,19.43253541]
[1758618088009,0.6748,4217.2,4217.1,16.87129781]
[1758618088217,0.89634704,4217.2,4217.1,16.87129781]
[1758618089018,2.94734704,4217.2,4217.1,2.37129781]
[1758618089220,2.94734704,4217.2,4216.8,35.31683669]
[1758618089221,0.1184,4217.1,4216.8,35.31683669]
[1758618089422,4.84034704,4217.0,4216.9,2.37141027]
[1758618090125,4.60754704,4217.0,4216.9,2.37141027]
[1758618090350,6.89134704,4217.0,4216.9,2.39512437]
[1758618090484,6.89054704,4217.0,4216.9,2.39512437]
[1758618090820,6.6698,4217.0,4216.9,2.39512437]
[1758618092100,6.437,4217.0,4216.9,2.39512437]
[1758618097493,6.6698,4217.0,4216.9,2.37141027]
[1758618099332,6.6698,4217.0,4216.8,35.31683669]
[1758618099482,1.18500952,4216.9,4216.8,35.31683669]
[1758618099680,6.74000952,4216.9,4216.8,35.31683669]
[1758618099916,7.18100952,4216.9,4216.8,37.6883032]
[1758618102525,7.40289885,4216.9,4216.8,37.6883032]
[1758618103030,7.40298327,4216.9,4216.8,37.6883032]
[1758618106450,6.65888933,4216.9,4216.8,37.6883032]
[1758618108057,6.88588933,4216.9,4216.8,37.6883032]
[1758618108724,6.65888933,4216.9,4216.8,37.6883032]
[1758618109422,6.77728933,4216.9,4216.8,37.6883032]
[1758618109739,7.28851068,4216.9,4216.8,37.6883032]
[1758618110048,7.2885084,4216.9,4216.8,37.6883032]
[1758618110244,6.77728933,4216.9,4216.8,37.6883032]
[1758618110445,7.28854602,4216.9,4216.8,37.6883032]
[1758618110647,7.51554602,4216.9,4216.8,35.31683669]
[1758618111269,7.51554602,4216.9,4216.8,37.6883032]
[1758618111557,14.57557621,4216.9,4216.8,37.6883032]
[1758618113187,8.57957621,4216.9,4216.8,37.6883032]
[1758618113505,14.57557621,4216.9,4216.8,37.6883032]
[1758618115551,14.57477621,4216.9,4216.8,37.6883032]
[1758618117758,14.57548895,4216.9,4216.8,37.6883032]
[1758618120525,14.57328895,4216.9,4216.8,35.31683669]
[1758618120676,16.94469922,4216.9,4216.8,35.31683669]
[1758618120876,19.94469922,4216.9,4216.8,35.1387133]
[1758618121201,21.22314621,4216.9,4216.8,35.1387133]
[1758618122199,19.94469922,4216.9,4216.8,35.1387133]
[1758618124367,21.22314621,4216.9,4216.8,35.1387133]
[1758618125164,20.31649039,4216.9,4216.8,35.1387133]
[1758618126068,19.94469922,4216.9,4216.8,35.1387133]
[1758618127066,19.94469922,4216.9,4216.8,34.96057658]
[1758618128507,22.01514621,4216.9,4216.8,34.96057658]
[1758618128721,21.04443812,4216.9,4216.8,31.62024279]
[1758618128902,22.75347851,4216.9,4216.8,31.62024279]
[1758618129068,21.04443812,4216.9,4216.8,31.62024279]
[1758618132428,21.10852854,4216.9,4216.8,31.62024279]
[1758618133130,20.88660902,4216.9,4216.8,31.62024279]
[1758618133328,20.88660902,4216.9,4216.8,31.44208295]
[1758618135516,21.10819983,4216.9,4216.8,31.44208295]
[1758618135834,27.52319983,4216.9,4216.8,31.44208295]
[1758618136207,27.15137051,4216.9,4216.8,31.44208295]
[1758618136932,28.57737051,4216.9,4216.8,31.44208295]
[1758618137134,27.15137051,4216.9,4216.8,31.44208295]
[1758618138329,27.16877051,4216.9,4216.8,31.44208295]
[1758618139129,27.54059719,4216.9,4216.8,31.44208295]
[1758618139309,27.54059719,4216.9,4216.8,31.26392043]
[1758618139515,27.54059719,4216.9,4216.8,31.13029854]
[1758618140034,27.54159719,4216.9,4216.8,31.13029854]
[1758618140443,27.54079719,4216.9,4216.8,31.13029854]
[1758618142128,27.16897051,4216.9,4216.8,31.13029854]
[1758618143543,27.16897051,4216.9,4216.8,29.8475245]
[1758618144719,14.51357051,4216.9,4216.8,29.8475245]
[1758618144947,26.48657051,4216.9,4216.8,29.8475245]
[1758618145332,26.48657051,4216.9,4216.8,29.66937203]
[1758618145721,14.07557051,4216.9,4216.8,29.90117203]
[1758618145921,26.48657051,4216.9,4216.8,29.90117203]
[1758618146125,26.48657051,4216.9,4216.8,29.66937203]
[1758618146351,27.16567051,4216.9,4216.8,29.66937203]
[1758618147351,27.47340941,4216.9,4216.8,27.74516732]
[1758618148052,0.792,4216.4,4216.3,0.004]
[1758618148249,10.19836147,4216.4,4216.3,0.004]
[1758618148447,10.84325173,4216.4,4216.3,0.004]
[1758618148615,11.52251836,4216.4,4216.3,0.004]
[1758618149051,18.58251836,4216.4,4216.3,0.004]
[1758618149251,20.2853346,4216.4,4216.3,0.004]
[1758618149428,18.58251836,4216.4,4216.3,0.004]
[1758618149625,3.1639165,4216.0,4215.9,50.42998193]
[1758618149833,20.39134337,4216.0,4215.9,50.42998193]
[1758618150354,21.34927732,4216.0,4215.9,50.42998193]
[1758618151449,21.34927732,4216.0,4215.9,50.25178479]
[1758618152220,21.47677387,4216.0,4215.9,50.25178479]
[1758618152426,21.72117387,4216.0,4215.9,50.25178479]
[1758618152639,23.42478503,4216.0,4215.9,50.25178479]
[1758618153351,21.72117387,4216.0,4215.9,50.25178479]
[1758618153533,23.42478503,4216.0,4215.9,50.25178479]
[1758618155534,22.74568503,4216.0,4215.9,50.25178479]
[1758618155931,23.42478503,4216.0,4215.9,39.9952119]
[1758618156267,23.05150505,4216.0,4215.9,37.42885321]
[1758618156467,23.05150505,4216.0,4213.0,0.4742]
[1758618156468,3.292,4215.5,4213.0,0.4742]
[1758618156672,6.16464811,4214.7,4214.4,0.2318]
[1758618156836,6.16464811,4214.7,4214.6,37.606]
[1758618156837,19.32337498,4214.7,4214.6,37.606]
[1758618157365,19.32337498,4214.7,4214.6,37.42774264]
[1758618157564,19.32437498,4214.7,4214.6,37.42774264]
[1758618158332,19.32437498,4214.7,4214.6,36.95354264]
[1758618158865,19.32437498,4214.7,4214.6,37.42774264]
[1758618159368,20.71628608,4214.7,4214.6,37.42774264]
[1758618159553,8.29028608,4214.7,4214.6,37.29405624]
[1758618159765,10.18264925,4214.7,4214.6,37.29405624]
[1758618159980,18.64964925,4214.7,4214.6,37.29405624]
[1758618160479,18.6474117,4214.7,4214.6,37.29405624]
[1758618160777,18.50967123,4214.7,4214.6,37.29405624]
[1758618161493,18.51167123,4214.7,4214.6,37.29405624]
[1758618162239,6.08367123,4214.7,4214.6,37.29405624]
[1758618162446,18.51067123,4214.7,4214.6,37.29405624]
[1758618163438,18.51067123,4214.7,4214.6,37.11581813]
[1758618163835,3.71102312,4214.7,4214.6,37.11581813]
[1758618164036,2.64674885,4214.7,4214.6,38.73737529]
[1758618164258,9.72780788,4214.7,4214.6,37.11581813]
[1758618164540,3.59374885,4214.7,4214.6,37.11581813]
[1758618164740,6.23475744,4214.7,4214.6,37.11581813]
[1758618165142,6.74433842,4214.7,4214.6,37.11581813]
[1758618165452,9.74353842,4214.7,4214.6,37.11581813]
[1758618165949,9.52258098,4214.7,4214.6,37.11581813]
[1758618166672,3.50958098,4214.7,4214.6,37.11581813]
[1758618166871,9.014,4214.7,4214.6,37.11581813]
[1758618167072,9.52358098,4214.7,4214.6,37.11581813]
[1758618168267,9.52258098,4214.7,4214.6,37.11581813]
[1758618170974,9.52258098,4214.7,4214.6,37.08441813]
[1758618172693,9.52258098,4214.7,4214.6,36.65531813]
[1758618173113,9.52258098,4214.7,4214.6,37.08441813]
[1758618174197,9.52258098,4214.7,4214.6,36.65531813]
[1758618174388,10.1595572,4214.7,4214.6,36.40981813]
[1758618175465,10.1595572,4214.7,4214.6,36.41381813]
[1758618175667,10.1605572,4214.7,4214.6,36.41381813]
[1758618176193,9.52358098,4214.7,4214.6,36.41381813]
[1758618176586,20.45352909,4214.7,4214.6,36.41381813]
[1758618176791,21.72748154,4214.7,4214.6,36.23558369]
[1758618177315,20.6752455,4214.7,4214.6,36.23558369]
[1758618177680,20.6752455,4214.7,4214.6,36.10190311]
[1758618180411,20.6752455,4214.7,4214.6,34.81856184]
[1758618182821,20.6752455,4214.7,4214.6,34.64031917]
[1758618183883,19.9699455,4214.7,4214.6,34.64031917]
[1758618184555,9.74429739,4214.7,4214.6,35.31491917]
[1758618185052,10.59636467,4214.7,4214.6,35.31491917]
[1758618185257,9.74444397,4214.7,4214.6,35.31491917]
[1758618185548,10.59651125,4214.7,4214.6,34.88581917]
[1758618186403,9.74444397,4214.7,4214.6,34.88581917]
[1758618187099,9.74444397,4214.7,4214.6,35.31491917]
[1758618187305,10.59636535,4214.7,4214.6,35.31491917]
[1758618187507,10.59836535,4214.7,4214.6,35.31491917]
[1758618190320,10.59756535,4214.7,4214.6,35.31491917]
[1758618191116,10.59756535,4214.7,4214.6,34.88581917]
[1758618191824,9.74564397,4214.7,4214.6,34.46209345]
[1758618193335,11.02367162,4214.7,4214.6,34.46209345]
[1758618194643,11.39564467,4214.7,4214.6,34.46209345]
[1758618195565,11.17378168,4214.7,4214.6,34.46209345]
[1758618195767,11.39576321,4214.7,4214.6,34.46209345]
[1758618196077,11.02379016,4214.7,4214.6,34.46209345]
[1758618197380,18.08379016,4214.7,4214.6,34.46209345]
[1758618197876,18.08379016,4214.7,4214.6,34.52436362]
[1758618198182,16.80576251,4214.7,4214.6,34.28386362]
[1758618198355,16.80576251,4214.7,4214.6,34.99506362]
[1758618198676,12.84476251,4214.7,4214.6,34.99506362]
[1758618198876,17.44222079,4214.7,4214.6,39.81060562]
[1758618199077,13.48422079,4214.7,4214.6,39.81060562]
[1758618199288,16.80376251,4214.7,4214.6,39.81060562]
[1758618200006,9.84556251,4214.7,4214.6,39.81060562]
[1758618200301,13.80456251,4214.7,4214.6,39.81060562]
[1758618203107,7.79256251,4214.7,4214.6,39.81060562]
[1758618203312,4.18098153,4214.7,4214.6,39.81060562]
[1758618205513,4.18063074,4214.7,4214.6,39.81060562]
[1758618205911,4.1806247,4214.7,4214.6,39.92900562]
[1758618206208,3.959,4214.7,4214.6,39.92900562]
[1758618206410,3.959,4214.7,4214.6,54.42900562]
[1758618206587,3.959,4214.7,4214.6,55.22100562]
[1758618207225,0.001,4214.7,4214.6,55.22100562]
[1758618215260,0.0002,4214.7,4214.6,55.22100562]
[1758618218816,0.0002,4214.7,4214.6,59.17500562]
[1758618220062,0.0002,4214.7,4214.6,62.17500562]
[1758618224463,0.0002,4214.7,4214.6,62.05660562]
[1758618224670,0.0002,4214.7,4214.6,62.17500562]
[1758618228793,0.0002,4214.7,4214.6,58.22100562]
[1758618228979,0.0002,4214.7,4214.6,64.22700562]
[1758618229179,0.0002,4214.7,4214.6,58.22100562]
[1758618229798,0.0002,4214.7,4214.6,64.22700562]
[1758618230008,0.0002,4214.7,4214.6,58.22100562]
[1758618230213,0.0002,4214.7,4214.6,64.22700562]
[1758618231429,0.0002,4214.7,4214.6,66.72700562]
[1758618231770,0.0002,4214.7,4214.6,58.22100562]
[1758618231976,0.0002,4214.7,4214.6,64.22700562]
[1758618232427,0.0002,4214.7,4214.6,62.17370562]
[1758618233709,0.0002,4214.7,4214.6,57.50980562]
[1758618234011,0.2401,4215.3,4215.2,3.792]
[1758618234176,0.2401,4215.3,4215.2,10.97105898]
[1758618234376,0.2401,4215.3,4215.2,4.13645898]
[1758618235020,0.001,4215.6,4215.5,2.37219784]
[1758618235222,0.001,4215.6,4215.5,2.39591981]
[1758618235522,0.001,4215.6,4215.5,2.51431981]
[1758618235676,0.001,4215.6,4215.5,3.19071856]
[1758618236081,0.001,4215.6,4215.5,17.69071856]
[1758618236305,0.001,4215.6,4215.5,17.66699659]
[1758618237411,0.2411,4215.6,4215.5,17.66699659]
[1758618237616,0.001,4215.6,4215.5,17.66699659]
[1758618237911,0.4677,4215.6,4215.5,17.66699659]
[1758618238309,0.68937193,4215.6,4215.5,17.66699659]
[1758618240232,0.68857193,4215.6,4215.5,17.66699659]
[1758618241715,0.68862016,4215.6,4215.5,17.66699659]
[1758618242465,0.68862016,4215.6,4215.5,2.37219784]
[1758618243124,0.80702016,4215.6,4215.5,2.37219784]
[1758618245855,0.80709193,4215.6,4214.9,0.1184]
[1758618246015,6.24956522,4215.5,4215.4,2.37225411]
[1758618246212,7.20244573,4215.5,4215.4,2.37225411]
[1758618246612,7.20244573,4215.5,4214.7,2.37264811]
[1758618246613,3.1184,4215.4,4215.0,2.37244739]
[1758618246817,0.1184,4215.1,4215.0,2.37247924]